{"text_format":"1","workbook":"xlsx","n_sheets":3,"sheets":["Ремонт","Квитанция","Гарантия"],"not_rendered":{"charts":0,"images":0,"macros":1,"external_links":0,"defined_names":0,"comments":0,"pivot_tables":0},"unopened":[],"bounds":{"document_bytes":16777216,"sheet_cells":100000,"rows_first":2000,"rows_last":500,"rows_between":2000,"halvings":0,"cell_chars":16384,"cell_head_chars":4096},"cells_cut":0,"cells_raw":0,"read":"whole","date_system":"1900"}

{"sheet":"Ремонт","index":0,"n_rows":3,"n_cols":18,"rows_kept":3,"cut":false,"hidden":false,"merged":[]}
["Номер заявки","Дата приемки","ФИО клиента","Номер телефона","Устройство","Модель","IMEI","АКБ","Заявленая неисправность","Примечания","Согласованная стоимость","Статус","Выполненая работа","Мастер","Сумма итого","Дата выдачи","Срок гарантии","Статус уведомления"]
[1,"2017-08-25","Костенко ЮД",1234567,"планшет","lenovo a6000",123456789123456,123654,"был в воде","царапина на задней крышке",30,"в работе"]
[2,"2017-08-27","Ясудович НД",7654321,"телефон","alcatel idol4",987654321987654,654125,"не работает сенсор",null,65,"ждет запчасти"]

{"sheet":"Квитанция","index":1,"n_rows":53,"n_cols":8,"rows_kept":53,"cut":false,"hidden":false,"merged":[]}
[]
[null,null,null,null,"Мастерская \"Элит Сервис\""]
[null,null,null,null,null,{"$f":"Ремонт!$A$2","v":1}]
[]
[]
[]
[]
[]
[]
[]
["Время работы:пн-пя с 10:00-18:00,сб-вс.:с 10:00-16:00"]
[]
[]
["Дата приема:",null,{"$f":"Ремонт!$B$2","v":"2017-08-25"},null,null,{"$f":"Ремонт!$E$2","v":"планшет"},"Модель:",{"$f":"Ремонт!$F$2","v":"lenovo a6000"}]
["ФИО",null,{"$f":"Ремонт!$C$2","v":"Костенко ЮД"},null,null,null,"IMEI:",{"$f":"Ремонт!$G$2","v":123456789123456}]
["тел.",null,{"$f":"Ремонт!$D$2","v":1234567},null,null,null,"№ АКБ",{"$f":"Ремонт!$H$2","v":123654}]
[null,null,null,null,null,null,"сумма:",{"$f":"Ремонт!$K$2","v":30}]
["Заявленная неисправность:",null,null,{"$f":"Ремонт!$I$2","v":"был в воде"}]
["Примечание:",null,null,{"$f":"Ремонт!$I$3","v":"не работает сенсор"}]
["Телефон принимается в ремонт без sim и флеш карт. Ремонт стоимостью до 25 р. производится без уведомления клиента."]
["При отсутствии комплектующих ремонт может продлится на неопределенный срок до поступления комплектующих. При приемке"]
["телефна в ремонт проверка всех узлов не проводится, неисправность фиксируется только со слов клиента. Диагностика проводится "]
["во время ремонта. Стоимость диагностики составляет 3 р. Работа с аппаратом подвергшимся попаданию жидкости 5р."]
["Ремонт телефона взятого на диагностику выполняется только после согласования окончательной стоимости ремонта с клиентом."]
["Если в прцессе осмотра и ремонта обнаруживаются дополнительные неисправности и повреждения, не заявленные заказчком, ремонт"]
["приостанавливается до согласования дальнейших действий с клиентом. Срок ремонта соответственно увеличивается. Если в прцессе ремонта"]
["необходимо осуществить действия, которые повлекут за собой частичную или полную потерю индивидуальной информации, сервисный центр "]
["производит работы без согласования с владельцем и ответственность за потерю информации не несет."]
["Сервисный центр не несет ответственность за:"]
["возможное проявление в данной аппаратуре дефектов, не указанных в приемке"]
["возможной полной или частичной утраты работоспособности аппарата или отдельных его узлов и блоков в процессе ремонта, в случае "]
["грубых нарушений пользователем условий эксплуатации."]
["Притензии по ремонту принимаются только после предъявления гарантийного талона и только на выполненные работы."]
["Внимание!!! Срок максимального хранения аппарата в мастерской составляет 90 дней со дня окончания ремонта "]
["(о чем клиент уведомляется по телефону), мастерская не несет ответсвенность за невозможность связаться с клиентом по контактному телефону"]
["предоставленному сервисному центру самим клиентом. После чего аппарат переходит с собственность СЦ. Максимальгый срок ремонта  60 дней."]
["Гарантийный срок до 30 дней."]
[]
["В ремонт принял:",null,"Кольвах О.А.",null,null,"В ремонт сдал:"]
["_______________________________________________________________________________"]
[]
["Дата приема:",null,{"$f":"C14","v":"2017-08-25"},null,null,{"$f":"F14","v":"планшет"},{"$f":"G14","v":"Модель:"},{"$f":"H14","v":"lenovo a6000"}]
["ФИО",null,{"$f":"C15","v":"Костенко ЮД"},null,null,null,"IMEI:",123456789123456]
["тел.",null,{"$f":"C16","v":1234567},null,null,null,"№ АКБ",123654]
[null,null,null,null,null,null,{"$f":"G17","v":"сумма:"},{"$f":"H17","v":30}]
["Заявленная неисправность:",null,null,{"$f":"D18","v":"был в воде"}]
["Примечание:",null,null,{"$f":"D19","v":"не работает сенсор"}]
[null,null,null,null,null,null,null,"  "]
["В ремонт принял:",null,{"$f":"C39","v":"Кольвах О.А."},null,null,"В ремонт сдал:"]
[]
[null,"Графический ключ или пароль телефона:",null,null,null,null,null,"*      *      *"]
[null,null,null,null,null,null,null,"*      *      *"]
[null,null,null,null,null,null,null,"*      *      *"]

{"sheet":"Гарантия","index":2,"n_rows":43,"n_cols":9,"rows_kept":43,"cut":false,"hidden":false,"merged":[[10,3,10,5]]}
[null,null,null," "]
[null,null,null,null,"Мастерская \"Элит Сервис\""]
[]
["Гродненская обл., г. Лида ул. Победы,37"]
["р/с 3012217110016 ЗАО \"Банк ВТБ\" (Беларусь) г. Минск"]
["код 153001108"]
["тел/факс 8(0154) 534740"]
["тел. в г. Лида  мтс -8 033 6570707 велком 8 029 9860000"]
["Время работы:пн-пя с 10:00-18:00,сб-вс.:с 10:00-16:00"]
[]
[null,null,null,"Гарантийный талон"]
[null,null,null,null,null,null,"гарантия"]
[]
["Дата выдачи:",null,null,null," ",null,"Модель:"]
["ФИО",null,null,null,null,null,"IMEI:"]
[null,null,null,null,null,null,"№ АКБ"]
[]
["Выполненная работа:"]
[]
["Стоимость ремонта:"]
[]
["Гарантия распространяется только на выполненные работы и установленные комплектующие."]
["Эксплуатация аппаратов, которых осуществлялась без соблюдения требований указанных в эксплуата",null,null,null,null,null,null," "]
["ционных документах , т.е. подвергшиеся воздействию влаги ,химических веществ, неквалифицированного "]
["вмешательства и имеющих сильные механические повреждения (глубокие вмятины,царапины"]
["и трещины на корпусе; деформацию печатных плат; смещение навесных элементов; трещины в "]
["керамической подложке) гарантийному обслуживанию не подлежат."]
[]
[]
["Оборудование из ремонта выдал:",null,null,null,null,"Оборудование из ремонта получил, притензий нет."]
[null,null,"Кольвах О.А.",null,null,null,null,null,"________"]
["___________________________________________________________________________________"]
[]
["Дата выдачи:",null,null,null,null,null,{"$f":"G14","v":"Модель:"}]
["ФИО",null,{"$f":"C15","v":0},null,null,null,"IMEI:"]
[null,null,null,null,null,null,"№ АКБ"]
[]
[{"$f":"A18","v":"Выполненная работа:"}]
[]
[{"$f":"A20","v":"Стоимость ремонта:"}]
[]
[{"$f":"A30","v":"Оборудование из ремонта выдал:"},null,null,null,null,{"$f":"F30","v":"Оборудование из ремонта получил, притензий нет."}]
[null,null,{"$f":"C31","v":"Кольвах О.А."},null,null,null,null,null,"________"]